[Event "Late-Titled-Tuesday-Blitz-December-26-2023"]
[Site "Chess.com"]
[Date "2023.12.26"]
[Round "2"]
[White "seasidesunset"]
[Black "Alex_Banzea"]
[Result "0-1"]
[WhiteElo "2227"]
[BlackElo "2650"]
[TimeControl "180+1"]
[EndTime "14:15:19 PST"]
[Termination "Alex_Banzea won by checkmate"]

1. e4 {[%clk 0:02:59.9]} 1... c6 {[%clk 0:02:56.9]} 2. d4 {[%clk 0:02:59.1]}
2... d5 {[%clk 0:02:57.8]} 3. f3 {[%clk 0:02:59.7]} 3... e5 {[%clk 0:02:53.5]}
4. dxe5 {[%clk 0:02:54.1]} 4... Bc5 {[%clk 0:02:52.9]} 5. Nc3 {[%clk 0:02:53.5]}
5... Qb6 {[%clk 0:02:53.4]} 6. Na4 {[%clk 0:02:53.6]} 6... Qa5+ {[%clk
0:02:53.3]} 7. c3 {[%clk 0:02:50.2]} 7... Bxg1 {[%clk 0:02:53.9]} 8. b4 {[%clk
0:02:32.5]} 8... Qc7 {[%clk 0:02:51.1]} 9. Rxg1 {[%clk 0:02:32.1]} 9... Qxe5
{[%clk 0:02:50.1]} 10. Qd4 {[%clk 0:02:23.3]} 10... Qxd4 {[%clk 0:02:42.3]} 11.
cxd4 {[%clk 0:02:24.2]} 11... dxe4 {[%clk 0:02:43.2]} 12. fxe4 {[%clk
0:02:24.6]} 12... Nf6 {[%clk 0:02:43.9]} 13. Nc3 {[%clk 0:02:22.5]} 13... O-O
{[%clk 0:02:40.8]} 14. Bg5 {[%clk 0:02:23.1]} 14... Nxe4 {[%clk 0:02:40.9]} 15.
Nxe4 {[%clk 0:02:10]} 15... Re8 {[%clk 0:02:40.8]} 16. Bd3 {[%clk 0:02:06.9]}
16... Bf5 {[%clk 0:02:27.7]} 17. Kd2 {[%clk 0:01:57.5]} 17... Bxe4 {[%clk
0:02:28]} 18. Rae1 {[%clk 0:01:57.4]} 18... f5 {[%clk 0:02:24]} 19. g4 {[%clk
0:01:58]} 19... Nd7 {[%clk 0:02:21.5]} 20. gxf5 {[%clk 0:01:58.1]} 20... Bxd3
{[%clk 0:02:20.8]} 21. Kxd3 {[%clk 0:01:59]} 21... Kf7 {[%clk 0:02:17.4]} 22.
Bf4 {[%clk 0:01:49.4]} 22... Nf6 {[%clk 0:01:48.5]} 23. Be5 {[%clk 0:01:47]}
23... a5 {[%clk 0:01:48.3]} 24. bxa5 {[%clk 0:01:42.8]} 24... Rxa5 {[%clk
0:01:45.5]} 25. Rb1 {[%clk 0:01:43.4]} 25... Re7 {[%clk 0:01:32.2]} 26. Rb2
{[%clk 0:01:41.4]} 26... Ra3+ {[%clk 0:01:22.2]} 27. Kc4 {[%clk 0:01:29.5]}
27... Nd5 {[%clk 0:00:59.9]} 28. Rxg7+ {[%clk 0:01:28.3]} 28... Kf8 {[%clk
0:01:00.2]} 29. Rxe7 {[%clk 0:01:28.4]} 29... Rc3# {[%clk 0:01:00]} 0-1

[Event "Late-Titled-Tuesday-Blitz-December-26-2023"]
[Site "Chess.com"]
[Date "2023.12.26"]
[Round "2"]
[White "Onischuk_V"]
[Black "FREZZY23"]
[Result "0-1"]
[WhiteElo "2700"]
[BlackElo "2398"]
[TimeControl "180+1"]
[EndTime "14:15:23 PST"]
[Termination "FREZZY23 won by resignation"]

1. Nf3 {[%clk 0:03:00.9]} 1... Nf6 {[%clk 0:02:59.7]} 2. Ng1 {[%clk 0:03:01.8]}
2... g6 {[%clk 0:02:59.3]} 3. g3 {[%clk 0:03:02.7]} 3... Bg7 {[%clk 0:03:00]} 4.
Bg2 {[%clk 0:02:58.8]} 4... O-O {[%clk 0:03:00.6]} 5. e3 {[%clk 0:02:58.1]} 5...
d5 {[%clk 0:03:01.2]} 6. Ne2 {[%clk 0:02:58.3]} 6... c5 {[%clk 0:03:01.3]} 7. d3
{[%clk 0:02:58]} 7... Nc6 {[%clk 0:03:01.8]} 8. h3 {[%clk 0:02:57.5]} 8... e5
{[%clk 0:03:00.4]} 9. O-O {[%clk 0:02:57.9]} 9... Be6 {[%clk 0:03:00.2]} 10. Nd2
{[%clk 0:02:56.8]} 10... Qd7 {[%clk 0:02:59.8]} 11. Kh2 {[%clk 0:02:56.2]} 11...
Rac8 {[%clk 0:02:59.4]} 12. b3 {[%clk 0:02:56.1]} 12... Rfd8 {[%clk 0:02:59.2]}
13. Bb2 {[%clk 0:02:56.6]} 13... b5 {[%clk 0:02:57.3]} 14. a3 {[%clk 0:02:56]}
14... a5 {[%clk 0:02:56.4]} 15. a4 {[%clk 0:02:51.2]} 15... b4 {[%clk
0:02:51.2]} 16. e4 {[%clk 0:02:51.5]} 16... dxe4 {[%clk 0:02:41.7]} 17. Nxe4
{[%clk 0:02:51.3]} 17... Nxe4 {[%clk 0:02:40.7]} 18. dxe4 {[%clk 0:02:51.3]}
18... c4 {[%clk 0:02:37]} 19. Qxd7 {[%clk 0:02:11.9]} 19... Rxd7 {[%clk
0:02:36.8]} 20. bxc4 {[%clk 0:02:12.2]} 20... Bxc4 {[%clk 0:02:36.7]} 21. Rfe1
{[%clk 0:02:11.4]} 21... Rd2 {[%clk 0:02:34.5]} 22. Bf1 {[%clk 0:02:11.6]} 22...
Rxc2 {[%clk 0:02:34.1]} 23. Rac1 {[%clk 0:02:12.2]} 23... Bb3 {[%clk 0:02:10.9]}
24. Rxc2 {[%clk 0:02:07]} 24... Bxc2 {[%clk 0:02:11.8]} 25. Ra1 {[%clk
0:02:06.7]} 25... Nd4 {[%clk 0:02:08]} 26. Nc1 {[%clk 0:01:59.9]} 26... Bxe4
{[%clk 0:01:59.7]} 27. Bxd4 {[%clk 0:02:00.1]} 27... exd4 {[%clk 0:01:59.9]} 28.
Nb3 {[%clk 0:02:00.8]} 28... d3 {[%clk 0:01:51.6]} 29. Re1 {[%clk 0:01:56.2]}
29... f5 {[%clk 0:01:36.8]} 30. Nxa5 {[%clk 0:01:55.1]} 30... d2 {[%clk
0:01:36.6]} 31. Rd1 {[%clk 0:01:54.7]} 31... Bc3 {[%clk 0:01:36.5]} 32. Ba6
{[%clk 0:01:43.4]} 32... Rc5 {[%clk 0:01:26.2]} 33. Nb3 {[%clk 0:01:39.8]} 33...
Bc2 {[%clk 0:01:11.1]} 34. Rxd2 {[%clk 0:01:30.4]} 34... Bxb3 {[%clk 0:01:08.4]}
0-1

[Event "Late-Titled-Tuesday-Blitz-December-26-2023"]
[Site "Chess.com"]
[Date "2023.12.26"]
[Round "2"]
[White "KnobbedHornbill"]
[Black "DmitryMaximov"]
[Result "0-1"]
[WhiteElo "2521"]
[BlackElo "2755"]
[TimeControl "180+1"]
[EndTime "14:15:32 PST"]
[Termination "DmitryMaximov won by resignation"]

1. d4 {[%clk 0:03:00.9]} 1... Nf6 {[%clk 0:03:00.1]} 2. c4 {[%clk 0:03:01.1]}
2... g6 {[%clk 0:03:00.7]} 3. g3 {[%clk 0:03:01.7]} 3... Bg7 {[%clk 0:03:01]} 4.
Bg2 {[%clk 0:03:02]} 4... O-O {[%clk 0:03:01.6]} 5. Nc3 {[%clk 0:03:02.5]} 5...
d6 {[%clk 0:03:02.2]} 6. Nf3 {[%clk 0:03:03]} 6... Nbd7 {[%clk 0:03:02]} 7. O-O
{[%clk 0:03:03.5]} 7... e5 {[%clk 0:03:02.6]} 8. e4 {[%clk 0:03:04.2]} 8... c6
{[%clk 0:03:03.2]} 9. h3 {[%clk 0:03:04.1]} 9... a5 {[%clk 0:03:03.5]} 10. Be3
{[%clk 0:03:03.6]} 10... a4 {[%clk 0:03:03.5]} 11. Qc2 {[%clk 0:03:03]} 11...
Qa5 {[%clk 0:03:03]} 12. Rad1 {[%clk 0:03:00]} 12... Qb4 {[%clk 0:03:01.2]} 13.
c5 {[%clk 0:02:39.4]} 13... dxc5 {[%clk 0:02:49.8]} 14. dxc5 {[%clk 0:02:17.3]}
14... Re8 {[%clk 0:02:36]} 15. a3 {[%clk 0:02:16.7]} 15... Qa5 {[%clk
0:02:31.9]} 16. Na2 {[%clk 0:02:08.2]} 16... Bf8 {[%clk 0:02:23.8]} 17. Rc1
{[%clk 0:02:06.5]} 17... Qc7 {[%clk 0:02:01]} 18. Rfd1 {[%clk 0:02:05.9]} 18...
Be7 {[%clk 0:01:56.4]} 19. Nb4 {[%clk 0:02:00.7]} 19... Ra5 {[%clk 0:01:51.6]}
20. Nd3 {[%clk 0:01:45.4]} 20... Nxe4 {[%clk 0:01:51.3]} 21. Nfxe5 {[%clk
0:01:44.3]} 21... Nxe5 {[%clk 0:01:49]} 22. Bxe4 {[%clk 0:01:37.7]} 22... Nxd3
{[%clk 0:01:42.8]} 23. Qxd3 {[%clk 0:01:28.7]} 23... Bxh3 {[%clk 0:01:42.6]} 24.
Bf4 {[%clk 0:01:27.5]} 24... Qc8 {[%clk 0:01:38]} 25. Bd6 {[%clk 0:01:22.8]}
25... Bf6 {[%clk 0:01:35.6]} 26. Qd2 {[%clk 0:01:22.1]} 26... Rb5 {[%clk
0:01:34.2]} 27. Rc2 {[%clk 0:01:19.9]} 27... Rxe4 {[%clk 0:01:31.8]} 28. Qd3
{[%clk 0:01:11.5]} 28... Bf5 {[%clk 0:01:27.4]} 29. Rcd2 {[%clk 0:01:04.3]}
29... Qe6 {[%clk 0:01:20.7]} 30. Qf3 {[%clk 0:01:01.4]} 30... Bg4 {[%clk
0:01:17]} 0-1

[Event "Late-Titled-Tuesday-Blitz-December-26-2023"]
[Site "Chess.com"]
[Date "2023.12.26"]
[Round "2"]
[White "ExchangeAB"]
[Black "GAusal"]
[Result "1-0"]
[WhiteElo "2499"]
[BlackElo "2301"]
[TimeControl "180+1"]
[EndTime "14:15:37 PST"]
[Termination "ExchangeAB won by checkmate"]

1. Nf3 {[%clk 0:03:00.9]} 1... d5 {[%clk 0:02:59.5]} 2. g3 {[%clk 0:03:00.9]}
2... c6 {[%clk 0:02:59.9]} 3. Bg2 {[%clk 0:03:00.5]} 3... Nf6 {[%clk 0:03:00.5]}
4. O-O {[%clk 0:03:01]} 4... g6 {[%clk 0:03:01]} 5. d3 {[%clk 0:02:57.4]} 5...
Bg7 {[%clk 0:03:01.3]} 6. c4 {[%clk 0:02:57.8]} 6... O-O {[%clk 0:03:01.4]} 7.
Nc3 {[%clk 0:02:38]} 7... Bg4 {[%clk 0:03:00]} 8. Rb1 {[%clk 0:02:37]} 8... Nbd7
{[%clk 0:02:59.2]} 9. a3 {[%clk 0:02:36.9]} 9... Rc8 {[%clk 0:02:51.7]} 10. Qc2
{[%clk 0:02:36.6]} 10... Bxf3 {[%clk 0:02:51]} 11. Bxf3 {[%clk 0:02:36.5]} 11...
d4 {[%clk 0:02:51.4]} 12. Ne4 {[%clk 0:02:35.9]} 12... Nxe4 {[%clk 0:02:50.9]}
13. Bxe4 {[%clk 0:02:36.8]} 13... b6 {[%clk 0:02:48.5]} 14. b4 {[%clk
0:02:36.6]} 14... f5 {[%clk 0:02:44.7]} 15. Bg2 {[%clk 0:02:36.2]} 15... e5
{[%clk 0:02:39.5]} 16. Qa4 {[%clk 0:02:34]} 16... Qc7 {[%clk 0:02:37.3]} 17. Bd2
{[%clk 0:02:29.9]} 17... c5 {[%clk 0:02:35.8]} 18. b5 {[%clk 0:02:25.1]} 18...
Rce8 {[%clk 0:02:32.5]} 19. Bd5+ {[%clk 0:02:24.6]} 19... Kh8 {[%clk 0:02:31.8]}
20. Qc2 {[%clk 0:02:24]} 20... Nf6 {[%clk 0:02:29.7]} 21. Bc6 {[%clk 0:02:24]}
21... Re7 {[%clk 0:02:28.8]} 22. Bg5 {[%clk 0:02:22.3]} 22... h6 {[%clk
0:02:27.4]} 23. Bxf6 {[%clk 0:02:21.4]} 23... Bxf6 {[%clk 0:02:27.7]} 24. a4
{[%clk 0:02:20.7]} 24... Bg5 {[%clk 0:02:21.9]} 25. a5 {[%clk 0:02:19.7]} 25...
f4 {[%clk 0:02:20]} 26. axb6 {[%clk 0:02:18.7]} 26... axb6 {[%clk 0:02:18.6]}
27. Ra1 {[%clk 0:02:18.6]} 27... fxg3 {[%clk 0:02:18.5]} 28. hxg3 {[%clk
0:02:16.2]} 28... Ref7 {[%clk 0:02:17.2]} 29. Kg2 {[%clk 0:02:14.7]} 29... h5
{[%clk 0:02:10]} 30. f3 {[%clk 0:02:13.4]} 30... Qd6 {[%clk 0:02:09.3]} 31. Ra6
{[%clk 0:02:10.4]} 31... Bd8 {[%clk 0:02:02.3]} 32. Be4 {[%clk 0:02:05]} 32...
Qf6 {[%clk 0:02:00.5]} 33. Qd2 {[%clk 0:02:03.2]} 33... Kh7 {[%clk 0:01:56.6]}
34. Rh1 {[%clk 0:02:00.7]} 34... Kg7 {[%clk 0:01:52]} 35. g4 {[%clk 0:01:56.2]}
35... Qf4 {[%clk 0:01:42.9]} 36. Qxf4 {[%clk 0:01:54.9]} 36... exf4 {[%clk
0:01:37.2]} 37. gxh5 {[%clk 0:01:54.6]} 37... g5 {[%clk 0:01:30.9]} 38. Kh3
{[%clk 0:01:49.6]} 38... Kh6 {[%clk 0:01:30.5]} 39. Kg4 {[%clk 0:01:49.6]} 39...
Rf6 {[%clk 0:01:30]} 40. Rha1 {[%clk 0:01:48.5]} 40... Re8 {[%clk 0:01:28.5]}
41. Ra7 {[%clk 0:01:47.4]} 41... Re7 {[%clk 0:01:26.4]} 42. Rxe7 {[%clk
0:01:46.1]} 42... Bxe7 {[%clk 0:01:26]} 43. Ra7 {[%clk 0:01:47]} 43... Re6
{[%clk 0:01:17.7]} 44. Rb7 {[%clk 0:01:36.7]} 44... Bd8 {[%clk 0:01:13.1]} 45.
Rh7# {[%clk 0:01:35.3]} 1-0

[Event "Late-Titled-Tuesday-Blitz-December-26-2023"]
[Site "Chess.com"]
[Date "2023.12.26"]
[Round "2"]
[White "chesspreceptor"]
[Black "maurovargas01"]
[Result "1-0"]
[WhiteElo "2641"]
[BlackElo "1841"]
[TimeControl "180+1"]
[EndTime "14:15:46 PST"]
[Termination "chesspreceptor won by resignation"]

1. d4 {[%clk 0:03:00.9]} 1... d5 {[%clk 0:02:58.5]} 2. Bf4 {[%clk 0:02:58.4]}
2... h5 {[%clk 0:02:57.4]} 3. Nc3 {[%clk 0:02:58.4]} 3... Nd7 {[%clk 0:02:51.5]}
4. e4 {[%clk 0:02:54]} 4... dxe4 {[%clk 0:02:48.5]} 5. Nxe4 {[%clk 0:02:54.1]}
5... Ngf6 {[%clk 0:02:47.1]} 6. Ng5 {[%clk 0:02:49]} 6... e6 {[%clk 0:02:43.8]}
7. N1f3 {[%clk 0:02:48.6]} 7... Nd5 {[%clk 0:02:42.3]} 8. Bd2 {[%clk 0:02:44.9]}
8... b6 {[%clk 0:02:34.4]} 9. Bd3 {[%clk 0:02:40.4]} 9... Bb7 {[%clk 0:02:31.3]}
10. c3 {[%clk 0:02:36.9]} 10... Qe7 {[%clk 0:02:30.9]} 11. Qe2 {[%clk
0:02:34.1]} 11... O-O-O {[%clk 0:02:29]} 12. O-O-O {[%clk 0:02:27.3]} 12... Re8
{[%clk 0:02:07.6]} 13. c4 {[%clk 0:02:12.4]} 13... N5f6 {[%clk 0:02:00.8]} 14.
Ne5 {[%clk 0:02:09]} 14... Nxe5 {[%clk 0:01:49.2]} 15. dxe5 {[%clk 0:02:09.9]}
15... Ng4 {[%clk 0:01:41.3]} 16. Be4 {[%clk 0:01:54.6]} 16... Qc5 {[%clk
0:01:36.4]} 17. Bxb7+ {[%clk 0:01:46.8]} 17... Kxb7 {[%clk 0:01:34.9]} 18. Nxf7
{[%clk 0:01:47]} 18... Rg8 {[%clk 0:01:16]} 19. f3 {[%clk 0:01:32.9]} 19... Nxe5
{[%clk 0:01:04.3]} 20. Nxe5 {[%clk 0:01:26]} 1-0

[Event "Late-Titled-Tuesday-Blitz-December-26-2023"]
[Site "Chess.com"]
[Date "2023.12.26"]
[Round "2"]
[White "UmutErdemGunduz"]
[Black "SergioMoralesG"]
[Result "1-0"]
[WhiteElo "2686"]
[BlackElo "2407"]
[TimeControl "180+1"]
[EndTime "14:15:56 PST"]
[Termination "UmutErdemGunduz won by resignation"]

1. e4 {[%clk 0:03:00.9]} 1... c5 {[%clk 0:02:59.5]} 2. Nf3 {[%clk 0:03:01.2]}
2... e6 {[%clk 0:02:59.7]} 3. d4 {[%clk 0:03:01.9]} 3... cxd4 {[%clk 0:03:00.5]}
4. Nxd4 {[%clk 0:03:02.8]} 4... Nc6 {[%clk 0:03:00.7]} 5. Nc3 {[%clk 0:02:59.7]}
5... Qc7 {[%clk 0:03:00.7]} 6. g3 {[%clk 0:02:57.8]} 6... a6 {[%clk 0:02:59.8]}
7. Bg2 {[%clk 0:02:56.6]} 7... Nf6 {[%clk 0:03:00.3]} 8. O-O {[%clk 0:02:56.7]}
8... Nxd4 {[%clk 0:03:00.7]} 9. Qxd4 {[%clk 0:02:57.6]} 9... Bc5 {[%clk
0:03:01.2]} 10. Bf4 {[%clk 0:02:58.4]} 10... d6 {[%clk 0:03:01]} 11. Qd2 {[%clk
0:02:57.9]} 11... h6 {[%clk 0:03:00.8]} 12. Rad1 {[%clk 0:02:58]} 12... e5
{[%clk 0:03:01]} 13. Be3 {[%clk 0:02:58.1]} 13... Be6 {[%clk 0:03:01.4]} 14.
Bxc5 {[%clk 0:02:53.4]} 14... dxc5 {[%clk 0:03:02.3]} 15. Nd5 {[%clk 0:02:52.5]}
15... Bxd5 {[%clk 0:03:02.3]} 16. exd5 {[%clk 0:02:53.4]} 16... Qd6 {[%clk
0:03:02.7]} 17. c4 {[%clk 0:02:53.5]} 17... O-O {[%clk 0:03:00.7]} 18. Rfe1
{[%clk 0:02:50]} 18... Rfe8 {[%clk 0:02:58.8]} 19. Re3 {[%clk 0:02:46.2]} 19...
Re7 {[%clk 0:02:55.4]} 20. Rde1 {[%clk 0:02:45.2]} 20... Rae8 {[%clk 0:02:54.6]}
21. h3 {[%clk 0:02:45.7]} 21... Nd7 {[%clk 0:02:30.7]} 22. Be4 {[%clk
0:02:44.2]} 22... g6 {[%clk 0:02:27]} 23. g4 {[%clk 0:02:20.6]} 23... Kg7 {[%clk
0:02:23.8]} 24. h4 {[%clk 0:02:14.8]} 24... Nf6 {[%clk 0:02:15.9]} 25. f3 {[%clk
0:02:05.2]} 25... Nxe4 {[%clk 0:02:04]} 26. fxe4 {[%clk 0:02:04.1]} 26... Qf6
{[%clk 0:02:03.8]} 27. Qh2 {[%clk 0:02:01.7]} 27... Qf4 {[%clk 0:01:57.5]} 28.
Qh3 {[%clk 0:01:57.8]} 28... Qf6 {[%clk 0:01:42.2]} 29. Rf1 {[%clk 0:01:54.9]}
29... Qd6 {[%clk 0:01:42.1]} 30. Ref3 {[%clk 0:01:53.2]} 30... f6 {[%clk
0:01:30]} 31. R1f2 {[%clk 0:01:47.1]} 31... Rf8 {[%clk 0:01:26.6]} 32. g5 {[%clk
0:01:46.3]} 32... Ref7 {[%clk 0:01:21.4]} 33. Qe6 {[%clk 0:01:43.9]} 33... Qb8
{[%clk 0:00:49.5]} 34. Rxf6 {[%clk 0:01:42.2]} 34... Rxf6 {[%clk 0:00:45.8]} 35.
Rxf6 {[%clk 0:01:39.2]} 35... Rxf6 {[%clk 0:00:37.3]} 36. Qxf6+ {[%clk
0:01:39.2]} 36... Kh7 {[%clk 0:00:36.7]} 37. Qe7+ {[%clk 0:01:38.4]} 37... Kh8
{[%clk 0:00:35.5]} 38. d6 {[%clk 0:01:39]} 1-0

[Event "Late-Titled-Tuesday-Blitz-December-26-2023"]
[Site "Chess.com"]
[Date "2023.12.26"]
[Round "2"]
[White "kingofthenil"]
[Black "KorolDimitriy75"]
[Result "1-0"]
[WhiteElo "2688"]
[BlackElo "2372"]
[TimeControl "180+1"]
[EndTime "14:15:56 PST"]
[Termination "kingofthenil won on time"]

1. g3 {[%clk 0:03:00]} 1... c5 {[%clk 0:03:00.1]} 2. Bg2 {[%clk 0:03:00.9]} 2...
g6 {[%clk 0:03:00.7]} 3. f4 {[%clk 0:02:55]} 3... Bg7 {[%clk 0:03:00.8]} 4. Nf3
{[%clk 0:02:55.9]} 4... Nc6 {[%clk 0:03:01.2]} 5. O-O {[%clk 0:02:53.7]} 5... d6
{[%clk 0:03:02.1]} 6. e4 {[%clk 0:02:53.3]} 6... e5 {[%clk 0:03:02.2]} 7. d3
{[%clk 0:02:52.2]} 7... Nge7 {[%clk 0:03:01.7]} 8. Nc3 {[%clk 0:02:52.3]} 8...
Nd4 {[%clk 0:03:01.5]} 9. f5 {[%clk 0:02:51.5]} 9... gxf5 {[%clk 0:03:01]} 10.
Nh4 {[%clk 0:02:51.6]} 10... f4 {[%clk 0:03:01.2]} 11. gxf4 {[%clk 0:02:50.9]}
11... Ng6 {[%clk 0:03:01]} 12. Nf5 {[%clk 0:02:49.2]} 12... Nxf5 {[%clk
0:01:47.7]} 13. exf5 {[%clk 0:02:50.1]} 13... Nxf4 {[%clk 0:01:47.5]} 14. Bxf4
{[%clk 0:02:43.2]} 14... exf4 {[%clk 0:01:48.4]} 15. Qh5 {[%clk 0:02:38.3]}
15... Be5 {[%clk 0:01:17.7]} 16. Nd5 {[%clk 0:02:20.4]} 16... Rg8 {[%clk
0:00:24.8]} 17. f6 {[%clk 0:01:58]} 17... Be6 {[%clk 0:00:03]} 18. Nxf4 {[%clk
0:01:40.3]} 18... Qd7 {[%clk 0:00:02.1]} 19. Nxe6 {[%clk 0:01:30.9]} 19... Qxe6
{[%clk 0:00:03]} 20. Kh1 {[%clk 0:01:31.4]} 20... O-O-O {[%clk 0:00:03]} 21. Bh3
{[%clk 0:01:32]} 1-0

[Event "Late-Titled-Tuesday-Blitz-December-26-2023"]
[Site "Chess.com"]
[Date "2023.12.26"]
[Round "2"]
[White "GABUZYAN_CHESSMOOD"]
[Black "yaguigor"]
[Result "1-0"]
[WhiteElo "2901"]
[BlackElo "2569"]
[TimeControl "180+1"]
[EndTime "14:16:01 PST"]
[Termination "GABUZYAN_CHESSMOOD won by resignation"]

1. e4 {[%clk 0:03:00.9]} 1... c5 {[%clk 0:02:59.5]} 2. Nc3 {[%clk 0:03:00.5]}
2... Nc6 {[%clk 0:02:59.1]} 3. Bb5 {[%clk 0:02:59.2]} 3... Nd4 {[%clk
0:02:58.9]} 4. Bc4 {[%clk 0:02:58.9]} 4... e6 {[%clk 0:02:59.4]} 5. Nge2 {[%clk
0:02:58]} 5... Nf6 {[%clk 0:02:54.1]} 6. O-O {[%clk 0:02:58]} 6... a6 {[%clk
0:02:48.8]} 7. a4 {[%clk 0:02:57.8]} 7... Rb8 {[%clk 0:02:26.4]} 8. d3 {[%clk
0:02:56.3]} 8... b5 {[%clk 0:02:21.3]} 9. axb5 {[%clk 0:02:56.1]} 9... axb5
{[%clk 0:02:22]} 10. Nxd4 {[%clk 0:02:56.5]} 10... bxc4 {[%clk 0:02:21.4]} 11.
Ndb5 {[%clk 0:02:56.2]} 11... cxd3 {[%clk 0:02:15.9]} 12. Qxd3 {[%clk
0:02:55.4]} 12... d6 {[%clk 0:02:04.8]} 13. Bf4 {[%clk 0:02:50.7]} 13... e5
{[%clk 0:02:03.4]} 14. Bg5 {[%clk 0:02:51]} 14... Bb7 {[%clk 0:01:58.4]} 15.
Rfd1 {[%clk 0:02:44.7]} 15... Be7 {[%clk 0:01:50.2]} 16. Bxf6 {[%clk 0:02:38.9]}
16... gxf6 {[%clk 0:01:43.8]} 17. Nxd6+ {[%clk 0:02:39.8]} 17... Bxd6 {[%clk
0:01:43.3]} 18. Qxd6 {[%clk 0:02:40.1]} 18... Qxd6 {[%clk 0:01:43.9]} 19. Rxd6
{[%clk 0:02:41]} 19... Ke7 {[%clk 0:01:44.2]} 20. Rb6 {[%clk 0:02:39.1]} 20...
Rhd8 {[%clk 0:00:36.4]} 21. Ra7 {[%clk 0:02:36.3]} 21... Rd7 {[%clk 0:00:36.4]}
22. Nd5+ {[%clk 0:02:29.2]} 22... Kd8 {[%clk 0:00:28.2]} 23. g4 {[%clk
0:02:25.2]} 23... Kc8 {[%clk 0:00:26.7]} 24. Ra5 {[%clk 0:02:14.2]} 24... Ra8
{[%clk 0:00:17.9]} 25. Rxc5+ {[%clk 0:02:06.2]} 25... Kd8 {[%clk 0:00:14.9]} 26.
Nxf6 {[%clk 0:02:03.4]} 26... Rc7 {[%clk 0:00:13.4]} 27. Rd6+ {[%clk 0:01:59.6]}
27... Kc8 {[%clk 0:00:12.2]} 28. Rxe5 {[%clk 0:01:56.2]} 28... Bc6 {[%clk
0:00:09.8]} 29. b4 {[%clk 0:01:52.5]} 29... Ba4 {[%clk 0:00:08.5]} 30. Nd5
{[%clk 0:01:43.1]} 1-0

[Event "Late-Titled-Tuesday-Blitz-December-26-2023"]
[Site "Chess.com"]
[Date "2023.12.26"]
[Round "2"]
[White "youngdinousaur"]
[Black "AGW2016"]
[Result "1-0"]
[WhiteElo "2301"]
[BlackElo "2558"]
[TimeControl "180+1"]
[EndTime "14:16:04 PST"]
[Termination "youngdinousaur won by resignation"]

1. d4 {[%clk 0:03:00.9]} 1... Nf6 {[%clk 0:02:59.3]} 2. Nf3 {[%clk 0:03:00.5]}
2... d5 {[%clk 0:02:59.3]} 3. Bf4 {[%clk 0:03:00.6]} 3... Bf5 {[%clk 0:02:58.8]}
4. e3 {[%clk 0:03:01.1]} 4... e6 {[%clk 0:02:59.1]} 5. c4 {[%clk 0:03:00.9]}
5... c6 {[%clk 0:02:58.4]} 6. Qb3 {[%clk 0:02:59.7]} 6... Qb6 {[%clk 0:02:58.3]}
7. c5 {[%clk 0:03:00]} 7... Qxb3 {[%clk 0:02:57.2]} 8. axb3 {[%clk 0:03:00.9]}
8... Be7 {[%clk 0:02:51.9]} 9. Nc3 {[%clk 0:03:00.8]} 9... O-O {[%clk
0:02:51.5]} 10. b4 {[%clk 0:03:01]} 10... Nbd7 {[%clk 0:02:50.4]} 11. b5 {[%clk
0:02:57.7]} 11... Nh5 {[%clk 0:02:50.9]} 12. bxc6 {[%clk 0:02:43.6]} 12... bxc6
{[%clk 0:02:51.8]} 13. Ne5 {[%clk 0:02:14]} 13... Nxf4 {[%clk 0:02:43.7]} 14.
Nxd7 {[%clk 0:02:09.9]} 14... Rfd8 {[%clk 0:02:43.8]} 15. Ne5 {[%clk 0:02:04.2]}
15... Ng6 {[%clk 0:02:43.7]} 16. Nxc6 {[%clk 0:02:03.8]} 16... Rd7 {[%clk
0:02:44.1]} 17. Nxe7+ {[%clk 0:01:57.8]} 17... Rxe7 {[%clk 0:02:45]} 18. b4
{[%clk 0:01:57.5]} 18... e5 {[%clk 0:02:45.4]} 19. Kd2 {[%clk 0:01:56.5]} 19...
exd4 {[%clk 0:02:45.6]} 20. exd4 {[%clk 0:01:57.4]} 20... Nf4 {[%clk 0:02:39.7]}
21. g3 {[%clk 0:01:53.6]} 21... Nh3 {[%clk 0:02:40.1]} 22. f3 {[%clk 0:01:46.6]}
22... h5 {[%clk 0:02:34.5]} 23. b5 {[%clk 0:01:41.4]} 23... Rae8 {[%clk
0:02:28.1]} 24. Bxh3 {[%clk 0:01:30.4]} 24... Bxh3 {[%clk 0:02:28.1]} 25. Rhe1
{[%clk 0:01:30.8]} 25... Bg2 {[%clk 0:02:24.9]} 26. Nxd5 {[%clk 0:01:05.7]}
26... Rxe1 {[%clk 0:02:23.2]} 27. Rxe1 {[%clk 0:01:06.6]} 27... Rd8 {[%clk
0:02:23.6]} 28. Ne7+ {[%clk 0:00:57.5]} 28... Kf8 {[%clk 0:02:22.7]} 29. d5
{[%clk 0:00:57.8]} 29... Bxf3 {[%clk 0:02:22.1]} 30. d6 {[%clk 0:00:57.7]} 30...
Bg4 {[%clk 0:02:12.7]} 31. Rc1 {[%clk 0:00:56.3]} 31... f6 {[%clk 0:02:07.2]}
32. Ke3 {[%clk 0:00:56.4]} 32... Kf7 {[%clk 0:02:06.6]} 33. Kd4 {[%clk
0:00:52.9]} 33... g5 {[%clk 0:02:02.2]} 34. h4 {[%clk 0:00:49]} 34... Bh3 {[%clk
0:01:59]} 35. Nc6 {[%clk 0:00:42.8]} 35... Rd7 {[%clk 0:01:57]} 36. Re1 {[%clk
0:00:32.8]} 36... Bg2 {[%clk 0:01:52.3]} 37. Nb8 {[%clk 0:00:23.8]} 37... Rd8
{[%clk 0:01:50]} 38. Re7+ {[%clk 0:00:23.6]} 38... Kg6 {[%clk 0:01:50.4]} 39.
Nc6 {[%clk 0:00:23.5]} 39... Rc8 {[%clk 0:01:49.9]} 40. d7 {[%clk 0:00:21.6]}
1-0